bitfinex/quotes_SOLUSD_20250310
["timestamp","ask_amount","ask_price","bid_price","bid_amount"]
[1741624096619,3.979e-05,121.26,121.24,62.69733215]
[1741624096821,3.979e-05,121.26,121.25,50.94473215]
[1741624097318,3.979e-05,121.26,121.21,0.03]
[1741624097525,3.979e-05,121.26,121.25,20.0]
[1741624098935,3.979e-05,121.26,121.25,28.2474]
[1741624099638,3.979e-05,121.26,121.25,70.94473215]
[1741624100751,3.979e-05,121.26,121.22,42.69733215]
[1741624100920,3.979e-05,121.26,121.25,20.0]
[1741624101125,61.3470208,121.26,121.21,0.03]
[1741624101321,42.69733215,121.23,121.21,0.03]
[1741624101536,9.76,121.22,121.21,20.03]
[1741624101925,28.40964886,121.22,121.21,0.03]
[1741624102133,28.40964886,121.22,121.21,20.03]
[1741624102331,71.10698101,121.22,121.21,0.03]
[1741624102927,79.35638101,121.22,121.21,0.03]
[1741624103325,79.49854258,121.22,121.21,0.03]
[1741624106326,80.87650841,121.22,121.21,0.03]
[1741624106528,164.21120841,121.22,121.21,0.03]
[1741624106728,210.27540415,121.22,121.21,0.03]
[1741624106933,0.14216157,121.18,121.15,20.0]
[1741624107223,18.64964886,121.16,121.13,8.2555]
[1741624107429,9.74,121.17,121.14,42.69733215]
[1741624108034,9.74,121.17,121.16,20.0]
[1741624108235,9.90288103,121.17,121.16,20.0]
[1741624108961,9.90288103,121.17,121.16,28.2535]
[1741624109328,9.90288103,121.17,121.16,70.95083215]
[1741624109543,9.90288103,121.17,121.16,28.2535]
[1741624110742,9.90288103,121.17,121.14,8.2546]
[1741624110942,9.90288103,121.17,121.16,20.0]
[1741624111128,9.90288103,121.17,121.16,28.2535]
[1741624111531,9.90288103,121.17,121.16,20.0]
[1741624111847,9.90288103,121.17,121.16,28.2535]
[1741624112047,9.90288103,121.17,121.16,20.0]
[1741624112253,9.90288103,121.17,121.13,8.2552]
[1741624112254,52.60021318,121.17,121.13,8.2552]
[1741624112833,9.90288103,121.17,121.13,8.2552]
[1741624113840,53.83601744,121.17,121.13,8.2552]
[1741624114041,18.64964886,121.16,121.12,8.2861]
[1741624114250,18.64964886,121.14,121.12,0.03]
[1741624114436,61.34698101,121.14,121.12,0.03]
[1741624114760,61.34698101,121.14,121.12,20.03]
[1741624115348,191.96710841,121.13,121.12,0.03]
[1741624115550,108.93130415,121.13,121.12,0.03]
[1741624115755,110.16710841,121.13,121.12,0.03]
[1741624117542,118.42260841,121.13,121.12,0.03]
[1741624117936,110.16710841,121.13,121.12,0.03]
[1741624118944,65.94964886,121.13,121.12,0.03]
[1741624119364,110.02494684,121.13,121.12,0.03]
[1741624119847,47.3,121.13,121.12,0.03]
[1741624120095,129.1,121.16,121.12,42.72733215]
[1741624120233,9.74,121.14,121.12,42.72733215]
[1741624120663,9.74,121.14,121.13,62.69733215]
[1741624120836,9.74,121.15,121.13,62.69733215]
[1741624121450,9.74,121.15,121.14,50.95223215]
[1741624121655,0.16288103,121.17,121.16,20.0]
[1741624121853,0.16288103,121.17,121.16,62.69733215]
[1741624122033,0.16288103,121.17,121.16,20.0]
[1741624122451,9.90288103,121.17,121.16,20.0]
[1741624123461,9.90288103,121.17,121.16,28.2535]
[1741624123851,9.90288103,121.17,121.16,20.0]
[1741624124261,9.90288103,121.17,121.16,28.2535]
[1741624124865,9.90288103,121.17,121.16,70.95083215]
[1741624125049,0.16288103,121.17,121.16,70.95083215]
[1741624125380,0.16288103,121.17,121.15,50.95133215]
[1741624125743,0.16288103,121.17,121.16,42.69733215]
[1741624126246,0.1663876,121.18,121.16,63.22810415]
[1741624126448,0.1663876,121.18,121.17,62.69733215]
[1741624127252,8.76e-05,121.18,121.17,62.69733215]
[1741624127447,5.383e-05,121.2,121.18,27.186072]
[1741624127672,7.51e-05,121.21,121.2,6.0922]
[1741624127874,7.51e-05,121.21,121.2,91.4868643]
[1741624128068,7.51e-05,121.21,121.2,91.77118744]
[1741624128372,0.18044943,121.21,121.2,91.4868643]
[1741624128881,0.18037433,121.21,121.2,91.4868643]
[1741624129174,6.677e-05,121.22,121.2,110.4208363]
[1741624129367,0.15612603,121.23,121.22,0.28432314]
[1741624129682,0.17519777,121.25,121.24,20.28432314]
[1741624129843,0.19120185,121.26,121.24,105.67898744]
[1741624130047,0.19120185,121.26,121.25,62.69733215]
[1741624131285,0.19120185,121.26,121.25,62.98165529]
[1741624131651,0.19120185,121.26,121.25,71.22905529]
[1741624132252,0.19120185,121.26,121.25,70.94473215]
[1741624132452,0.19120185,121.26,121.25,62.69733215]
[1741624133260,0.19120185,121.26,121.25,70.94473215]
[1741624133459,0.19120185,121.26,121.25,71.22905529]
[1741624133668,1.85e-06,121.26,121.25,113.92638744]
[1741624133872,9.236e-05,121.27,121.26,8.03182314]
[1741624134067,9.236e-05,121.27,121.26,93.42648744]
[1741624134895,0.063,121.3,121.29,20.28432314]
[1741624135190,0.063,121.34,121.29,105.67898744]
[1741624135359,0.063,121.34,121.33,42.69733215]
[1741624135561,0.063,121.34,121.33,50.93923215]
[1741624136462,0.063,121.34,121.32,42.69733215]
[1741624136866,0.063,121.34,121.33,20.0]
[1741624137783,0.063,121.34,121.33,28.2419]
[1741624138080,0.063,121.34,121.33,70.93923215]
[1741624138488,0.063,121.34,121.32,50.93983215]
[1741624138783,0.063,121.34,121.33,64.63315529]
[1741624138992,0.063,121.35,121.34,62.69733215]
[1741624139698,0.063,121.35,121.34,70.93863215]
[1741624140071,0.063,121.35,121.34,71.22295529]
[1741624140400,0.0001,121.35,121.34,71.22295529]
[1741624140863,0.0001,121.35,121.34,28.2413]
[1741624141068,0.0001,121.35,121.32,20.0]
[1741624141387,0.0001,121.35,121.32,42.69733215]
[1741624141571,0.0001,121.35,121.34,70.93863215]
[1741624141888,0.0001,121.35,121.34,20.0]
[1741624142064,0.0001,121.35,121.33,42.69733215]
[1741624142773,0.0001,121.35,121.34,42.69733215]
[1741624143491,0.0001,121.35,121.34,42.98165529]
[1741624143690,0.0001,121.35,121.34,51.22295529]
[1741624144094,0.03,121.39,121.37,20.0]
[1741624144302,0.03,121.39,121.38,85.3946643]
[1741624144604,0.03,121.45,121.44,42.69733215]
[1741624145173,0.03,121.45,121.44,20.0]
[1741624145390,50.96113215,121.45,121.4,42.69733215]
[1741624145680,69.58208101,121.44,121.42,20.0]
[1741624145893,9.72,121.43,121.39,42.69733215]
[1741624146096,61.34698101,121.4,121.33,1.5521]
[1741624146403,42.69733215,121.38,121.33,42.69733215]
[1741624146706,9.72,121.37,121.36,20.0]
[1741624147200,9.72,121.37,121.34,42.69733215]
[1741624147387,9.72,121.37,121.33,42.69733215]
[1741624147785,9.72,121.37,121.35,42.69733215]
[1741624148308,0.17937534,121.36,121.35,83.74339333]
[1741624148518,0.17937534,121.36,121.35,20.0]
[1741624148678,0.17937534,121.36,121.35,83.74339333]
[1741624149080,0.17937534,121.36,121.31,8.2433]
[1741624149291,0.17937534,121.36,121.33,63.74339333]
[1741624149504,0.17937534,121.36,121.35,20.0]
[1741624150217,82.57241753,121.36,121.3,63.74339333]
[1741624150501,0.17937534,121.36,121.34,20.0]
[1741624151389,0.17937534,121.36,121.35,63.74339333]
[1741624151914,0.17937534,121.36,121.35,71.98399333]
[1741624152479,0.17937534,121.36,121.34,8.241]
[1741624152684,0.17937534,121.36,121.33,83.74339333]
[1741624153187,0.17937534,121.36,121.34,63.74339333]
[1741624153589,27.0690242,121.36,121.31,63.74339333]
[1741624153807,27.0690242,121.36,121.3,63.74339333]
[1741624153808,63.74339333,121.35,121.3,63.74339333]
[1741624154010,90.81241753,121.36,121.31,63.74339333]
[1741624154214,27.0690242,121.36,121.31,63.74339333]
[1741624154506,9.72,121.35,121.33,20.0]
[1741624154807,9.72,121.35,121.28,28.8585]
[1741624154982,25.2348242,121.36,121.31,20.0]
[1741624155181,9.72,121.35,121.31,20.0]
[1741624155381,0.17937534,121.36,121.31,20.0]
[1741624155382,9.72,121.34,121.31,20.0]
[1741624156007,9.72,121.34,121.32,63.74339333]
[1741624156808,81.70469333,121.34,121.31,0.063]
[1741624157003,82.39304219,121.33,121.31,0.063]
[1741624157403,82.39304219,121.33,121.31,20.063]
[1741624157813,18.64964886,121.33,121.31,0.063]
[1741624158001,9.72,121.34,121.31,0.063]
[1741624158198,9.72,121.34,121.32,20.0]
[1741624158497,83.62884645,121.33,121.31,0.063]
[1741624159019,9.72,121.34,121.31,92.04959333]
[1741624159191,9.72,121.34,121.31,83.80639333]
[1741624159389,9.72,121.33,121.31,92.04959333]
[1741624159714,9.72,121.33,121.31,83.80639333]
[1741624159918,9.72,121.33,121.31,0.063]
[1741624160092,17.9619,121.33,121.31,0.063]
[1741624160415,17.9619,121.33,121.31,20.063]
[1741624160612,18.64964886,121.32,121.31,20.063]
[1741624160814,18.64964886,121.32,121.31,0.063]
[1741624161015,18.64964886,121.32,121.31,20.063]
[1741624161714,18.64964886,121.32,121.31,0.063]
[1741624161916,92.15576959,121.32,121.31,0.063]
[1741624162091,90.91996533,121.32,121.31,0.063]
[1741624162496,92.15576959,121.32,121.31,0.063]
[1741624162995,0.14216157,121.29,121.21,71.99349333]
[1741624163189,88.80854219,121.27,121.21,71.99349333]
[1741624163417,88.80854219,121.27,121.24,20.0]
[1741624163594,25.06514886,121.27,121.23,63.74339333]
[1741624164018,25.06514886,121.27,121.23,71.99199333]
[1741624164219,33.31124886,121.27,121.22,71.99249333]
[1741624164527,97.05464219,121.27,121.22,63.74339333]
[1741624164903,88.80854219,121.27,121.22,71.99269333]
[1741624165393,90.04434645,121.27,121.22,71.99269333]
[1741624165596,25.06514886,121.27,121.23,63.74339333]
[1741624165993,25.06514886,121.27,121.23,71.99149333]
[1741624166906,90.04434645,121.27,121.22,71.99269333]
[1741624167215,18.64964886,121.25,121.2,0.063]
[1741624167518,18.64964886,121.25,121.2,63.80639333]
[1741624168020,90.04434645,121.27,121.22,8.2494]
[1741624168213,0.16452732,121.23,121.22,8.2494]
[1741624168415,9.88452732,121.23,121.22,8.3124]
[1741624168601,0.16452732,121.23,121.22,50.90445036]
[1741624169019,0.16452732,121.23,121.22,0.063]
[1741624169215,0.16452732,121.23,121.22,42.65505036]
[1741624169720,2.732e-05,121.23,121.22,42.9393735]
[1741624170024,9.547e-05,121.24,121.23,8.53302314]
[1741624170219,8.129e-05,121.25,121.23,51.1250735]
[1741624170401,1.387e-05,121.26,121.25,0.28432314]
[1741624170597,1.387e-05,121.26,121.25,50.8269735]
[1741624171114,1.387e-05,121.26,121.25,50.54265036]
[1741624171901,1.387e-05,121.26,121.25,58.79005036]
[1741624172230,6.5e-07,121.29,121.28,20.0]
[1741624172433,6.5e-07,121.29,121.28,62.59205036]
[1741624172715,6.5e-07,121.29,121.28,62.8763735]
[1741624173022,6.078e-05,121.3,121.29,0.28432314]
[1741624173204,6.078e-05,121.3,121.29,62.8763735]
[1741624174617,6.078e-05,121.3,121.29,71.1210735]
[1741624176399,6.078e-05,121.3,121.29,70.83675036]
[1741624176602,6.078e-05,121.3,121.29,50.83675036]
[1741624178328,6.078e-05,121.3,121.29,51.1210735]
[1741624180808,6.078e-05,121.3,121.29,51.1840735]
[1741624183206,6.078e-05,121.3,121.29,50.89975036]
[1741624184615,6.078e-05,121.3,121.29,51.1840735]
[1741624187640,6.078e-05,121.3,121.29,50.89975036]
[1741624188204,4.003e-05,121.3,121.29,50.89975036]
[1741624189340,7.834e-05,121.31,121.3,42.59205036]
[1741624189511,7.834e-05,121.31,121.29,0.063]
[1741624189709,72.17750348,121.3,121.29,0.063]
[1741624190163,72.46182662,121.3,121.29,0.063]
[1741624190439,18.64964886,121.28,121.25,20.0]
[1741624190815,61.24169922,121.28,121.25,20.0]
[1741624191218,61.24169922,121.28,121.23,42.59205036]
[1741624191435,18.64964886,121.28,121.23,42.59205036]
[1741624191638,61.24169922,121.28,121.23,42.59205036]
[1741624192140,18.64964886,121.26,121.22,42.65505036]
[1741624192336,9.7,121.25,121.22,50.90435036]
[1741624192646,9.7,121.25,121.24,20.0]
[1741624194333,9.7,121.25,121.23,0.063]
[1741624194521,9.7,121.25,121.23,20.063]
[1741624194723,9.7,121.25,121.24,20.0]
[1741624198029,52.29205036,121.25,121.23,0.063]
[1741624198224,52.29205036,121.25,121.23,20.063]
[1741624198421,9.7,121.25,121.23,20.063]
[1741624198628,60.53975036,121.25,121.23,0.063]
[1741624198834,42.59205036,121.24,121.23,0.063]
[1741624199253,61.24169922,121.24,121.23,0.063]
[1741624199759,18.64964886,121.24,121.23,0.063]
[1741624200053,61.24169922,121.24,121.23,0.063]
[1741624200255,9.7,121.25,121.23,20.063]
[1741624200464,9.7,121.25,121.23,0.063]
[1741624200465,61.24169922,121.24,121.23,0.063]
[1741624200671,152.80992662,121.24,121.23,0.063]
[1741624200830,151.43196079,121.24,121.23,0.063]
[1741624201038,143.04169922,121.24,121.23,0.063]
[1741624201236,152.66776505,121.24,121.23,0.063]
[1741624201543,69.77412236,121.24,121.23,0.063]
[1741624201728,71.00992662,121.24,121.23,0.063]
[1741624201930,71.00992662,121.24,121.22,0.063]
[1741624201931,148.033972,121.23,121.22,0.063]
[1741624202160,61.52602236,121.23,121.22,0.063]
[1741624202706,18.79181043,121.21,121.2,0.063]
[1741624202832,111.97307698,121.21,121.2,0.063]
[1741624203152,111.97307698,121.21,121.19,0.063]
[1741624203336,18.933972,121.19,121.18,0.063]
[1741624203542,63.07062662,121.19,121.18,0.063]
[1741624204027,134.09205036,121.2,121.18,0.063]
[1741624204331,135.32785462,121.2,121.18,0.063]
[1741624204530,61.24169922,121.19,121.18,0.063]
[1741624205046,62.76182662,121.19,121.18,0.063]
[1741624205644,71.01332662,121.19,121.18,0.063]
[1741624205946,62.76182662,121.19,121.18,0.063]
[1741624206354,62.61966505,121.19,121.18,0.063]
[1741624206572,61.38386079,121.19,121.18,0.063]
[1741624206877,62.61966505,121.19,121.18,0.063]
[1741624207747,62.47750348,121.19,121.18,0.063]
[1741624208059,61.24169922,121.19,121.18,0.063]
[1741624208259,62.61966505,121.19,121.18,0.063]
[1741624208761,61.24169922,121.19,121.18,0.063]
[1741624208950,62.61966505,121.19,121.18,0.063]
[1741624209151,152.81332662,121.19,121.18,0.063]
[1741624209366,151.57752236,121.19,121.18,0.063]
[1741624209684,143.32602236,121.19,121.18,0.063]
[1741624209985,144.41966505,121.19,121.18,0.063]
[1741624210665,152.81332662,121.19,121.18,0.063]
[1741624210866,151.57752236,121.19,121.18,0.063]
[1741624211076,69.77752236,121.19,121.18,0.063]
[1741624211383,71.01332662,121.19,121.18,0.063]
[1741624212865,69.77752236,121.19,121.18,0.063]
[1741624213447,61.38386079,121.19,121.18,0.063]
[1741624213886,71.01332662,121.19,121.18,0.063]
[1741624214062,62.76182662,121.19,121.18,0.063]
[1741624214385,1.23580426,121.2,121.18,0.063]
[1741624214583,9.7,121.19,121.18,0.063]
[1741624214755,72.31966505,121.19,121.18,0.063]
[1741624215270,71.08386079,121.19,121.18,0.063]
[1741624215786,71.22602236,121.19,121.18,0.063]
[1741624216162,72.46182662,121.19,121.18,0.063]
[1741624216595,80.71332662,121.19,121.18,0.063]
[1741624217958,29.72761469,121.19,121.18,0.063]
[1741624218167,71.08386079,121.19,121.18,0.063]
[1741624218682,80.57116505,121.19,121.18,0.063]
[1741624218889,80.71332662,121.19,121.18,0.063]
[1741624220968,9.7,121.19,121.18,0.063]
[1741624221182,52.29205036,121.19,121.18,0.063]
[1741624221489,71.22602236,121.19,121.18,0.063]
[1741624221899,70.94169922,121.19,121.18,0.063]
[1741624222080,9.7,121.19,121.18,0.063]
[1741624222466,218.583,121.21,121.18,0.063]
[1741624222666,0.063,121.21,121.19,50.84355036]
[1741624222969,0.063,121.21,121.2,42.59205036]
[1741624223603,0.063,121.21,121.18,42.65505036]
[1741624223767,42.59205036,121.2,121.18,0.063]
[1741624224169,0.063,121.21,121.18,50.90715036]
[1741624224390,9.7,121.2,121.19,42.59205036]
[1741624224587,9.7,121.2,121.19,50.84355036]
[1741624224798,9.7,121.2,121.18,0.063]
[1741624225268,52.29205036,121.2,121.18,0.063]
[1741624225585,60.54285036,121.2,121.18,0.063]
[1741624225791,9.7,121.2,121.18,0.063]
[1741624225984,9.763,121.21,121.19,42.59205036]
[1741624226171,9.763,121.21,121.2,42.59205036]
[1741624226570,9.763,121.21,121.2,50.84285036]
[1741624226900,9.763,121.21,121.18,20.6934]
[1741624226901,9.763,121.21,121.19,50.84315036]
[1741624227467,9.763,121.21,121.18,0.063]
[1741624227663,9.763,121.21,121.18,70.90705036]
[1741624228100,9.763,121.21,121.18,28.315]
[1741624228376,1.804e-05,121.19,121.18,28.59932314]
[1741624228581,0.16863008,121.2,121.18,28.59932314]
[1741624228789,0.23163008,121.2,121.19,44.14215036]
[1741624229780,0.23163008,121.2,121.19,21.5501]
[1741624230181,0.23163008,121.2,121.19,64.14215036]
[1741624230872,0.23163008,121.2,121.19,29.8016]
[1741624231076,0.23163008,121.2,121.19,1.5501]
[1741624231374,0.23163008,121.2,121.18,42.65505036]
[1741624231681,0.23163008,121.2,121.18,0.063]
[1741624231905,27.13217894,121.2,121.18,0.063]
[1741624232177,62.47750348,121.19,121.18,0.063]
[1741624232381,62.76182662,121.19,121.15,0.063]
[1741624232729,42.73421193,121.16,121.15,0.063]
[1741624233001,47.3,121.17,121.15,0.063]
[1741624233368,110.14964886,121.18,121.15,0.063]
[1741624233966,91.5,121.18,121.15,42.65505036]
[1741624234178,9.7,121.18,121.17,42.59205036]
[1741624235106,9.7,121.18,121.16,42.59205036]
[1741624235485,9.7,121.18,121.17,62.59205036]
[1741624235791,9.7,121.18,121.17,20.0]
[1741624236314,9.7,121.18,121.17,62.59205036]
[1741624236678,9.7,121.18,121.17,20.0]
[1741624236904,9.7,121.18,121.17,70.84485036]
[1741624237709,9.7,121.18,121.16,20.0]
[1741624237912,9.7,121.18,121.15,1.6865]
[1741624238074,9.7,121.18,121.15,9.9406]
[1741624238283,9.7,121.18,121.16,42.59205036]
[1741624238798,9.7,121.18,121.15,0.063]
[1741624239185,9.7,121.18,121.15,42.65505036]
[1741624239386,18.64964886,121.17,121.15,0.063]
[1741624239581,0.14216157,121.16,121.15,0.063]
[1741624239787,42.73421193,121.16,121.15,0.063]
[1741624239991,190.62602236,121.16,121.15,0.063]
[1741624240505,0.14216157,121.14,121.13,0.03]
[1741624240701,111.42397698,121.14,121.13,0.03]
[1741624241208,34.35261469,121.14,121.13,0.03]
[1741624241416,119.67887698,121.14,121.13,0.0001]
[1741624241707,121.67887698,121.14,121.13,0.0001]
[1741624242493,18.79181043,121.13,121.12,0.03]
[1741624242690,71.08386079,121.13,121.12,0.03]
[1741624243302,79.33936079,121.13,121.12,0.03]
[1741624243501,79.48152236,121.13,121.12,0.0001]
[1741624244798,26.90514886,121.13,121.12,0.0001]
[1741624245011,9.7,121.13,121.12,0.0001]
[1741624245716,81.8,121.16,121.12,44.49129627]
[1741624246014,9.7,121.14,121.12,44.49129627]
[1741624246605,9.7,121.14,121.13,42.59205036]
[1741624246994,218.563,121.18,121.14,8.2549]
[1741624247189,9.7,121.17,121.16,62.59205036]
[1741624249090,9.7,121.17,121.16,70.84555036]
[1741624249411,9.763,121.18,121.16,70.84555036]
[1741624249583,0.063,121.18,121.17,42.59205036]
[1741624250091,0.063,121.18,121.17,20.0]
[1741624250299,0.063,121.18,121.17,62.59205036]
[1741624250893,0.063,121.18,121.17,20.0]
[1741624251091,0.063,121.18,121.17,62.59205036]
[1741624251409,0.063,121.18,121.17,70.84485036]
[1741624251583,0.063,121.18,121.17,20.0]
[1741624251989,0.063,121.18,121.16,62.59205036]
[1741624252223,0.063,121.18,121.17,42.59205036]
[1741624253209,0.063,121.18,121.17,50.84485036]
[1741624253581,0.063,121.18,121.16,62.59205036]
[1741624253784,0.063,121.18,121.17,20.0]
[1741624254000,42.65505036,121.18,121.15,0.03]
[1741624254200,42.65505036,121.18,121.16,20.0]
[1741624254610,61.24169922,121.17,121.15,0.03]
[1741624254908,42.59205036,121.16,121.15,0.03]
[1741624255101,42.65505036,121.18,121.15,0.03]
[1741624255303,0.063,121.18,121.17,20.0]
[1741624255509,0.063,121.18,121.16,42.59205036]
[1741624255812,0.063,121.18,121.17,20.0]
[1741624256389,0.063,121.18,121.16,42.59205036]
[1741624257020,0.063,121.18,121.15,62.62205036]
[1741624257321,9.7,121.17,121.15,0.03]
[1741624257489,52.29205036,121.17,121.15,0.03]
[1741624257985,9.7,121.17,121.15,0.03]
[1741624258187,42.65505036,121.18,121.15,0.03]
[1741624258504,9.7,121.17,121.15,50.87615036]
[1741624258714,9.7,121.17,121.15,8.2841]
[1741624258889,9.7,121.17,121.15,0.03]
[1741624259106,61.24169922,121.16,121.15,0.03]
[1741624259306,62.47750348,121.16,121.15,0.03]
[1741624260027,18.64964886,121.16,121.15,0.03]
[1741624260406,61.24169922,121.16,121.15,0.03]
[1741624260603,61.52602236,121.16,121.15,0.03]
[1741624260807,62.76182662,121.16,121.15,1.92914591]
[1741624261004,28.42327626,121.16,121.15,1.92914591]
[1741624261207,19.88545312,121.16,121.15,1.92914591]
[1741624261521,140.31755036,121.17,121.15,1.92914591]
[1741624261729,149.80625462,121.17,121.15,1.92914591]
[1741624261913,148.57045036,121.17,121.15,1.92914591]
[1741624262118,18.64964886,121.16,121.15,1.92914591]
[1741624262427,38.79181043,121.13,121.12,0.0001]
[1741624262629,164.41966505,121.13,121.12,6.07736692]
[1741624262840,163.04169922,121.13,121.12,6.07736692]
[1741624263021,171.43936079,121.13,121.12,6.07736692]
[1741624263330,151.43936079,121.13,121.12,6.07736692]
[1741624263528,151.58152236,121.13,121.12,6.07736692]
[1741624264517,151.43936079,121.13,121.12,6.07736692]
[1741624264707,18.64964886,121.13,121.12,6.07736692]
[1741624265133,218.58,121.14,121.12,6.07736692]
[1741624265432,61.52602236,121.13,121.12,6.07736692]
[1741624265726,0.28432314,121.12,121.11,0.97459003]
[1741624265928,71.22602236,121.12,121.11,1.88618006]
[1741624266106,71.08386079,121.12,121.11,1.88618006]
[1741624266302,71.22602236,121.12,121.11,1.88618006]
[1741624266735,28.49181043,121.12,121.11,1.88618006]
[1741624267031,36.60584886,121.12,121.11,1.88618006]
[1741624267242,28.34964886,121.12,121.11,1.88618006]
[1741624267412,36.74801043,121.12,121.11,1.88618006]
[1741624267613,79.48222236,121.12,121.11,1.88618006]
[1741624267809,43.82785462,121.13,121.11,1.88618006]
[1741624268128,9.86077036,121.12,121.11,1.88618006]
[1741624268830,71.10246958,121.12,121.11,1.88618006]
[1741624269531,79.50083115,121.12,121.11,1.88618006]
[1741624269734,79.64299272,121.12,121.11,1.88618006]
[1741624270249,18.64964886,121.11,121.1,0.72928003]
[1741624270410,19.88545312,121.11,121.1,1.45856006]
[1741624270611,70.88182662,121.11,121.08,0.03]
[1741624270825,0.28432314,121.08,121.07,0.68688181]
[1741624271014,110.06182662,121.08,121.06,0.74988181]
[1741624271333,79.20129922,121.07,121.06,1.29938726]
[1741624271526,0.28432314,121.06,121.05,0.52456363]
[1741624271712,62.76182662,121.06,121.05,1.01912726]
[1741624271912,20.16977626,121.06,121.05,1.01912726]
[1741624272145,62.76182662,121.06,121.05,1.01912726]
[1741624272809,18.64964886,121.06,121.05,1.01912726]
[1741624273234,28.34964886,121.06,121.05,1.01912726]
[1741624273453,9.7,121.06,121.05,1.01912726]
[1741624273649,9.7,121.06,121.05,9.28012726]
[1741624274333,9.7,121.06,121.05,1.01912726]
[1741624276435,28.34964886,121.06,121.05,1.01912726]
[1741624276613,9.7,121.06,121.05,1.01912726]
[1741624277539,9.7,121.06,121.05,9.28012726]
[1741624278113,9.7,121.06,121.05,51.87217762]
[1741624278437,47.46077036,121.12,121.08,20.0]
[1741624278609,9.7,121.11,121.08,20.0]
[1741624278813,18.64964886,121.1,121.06,44.23915036]
[1741624279031,9.7,121.11,121.08,42.59205036]
[1741624279332,9.7,121.11,121.07,42.59205036]
[1741624279633,9.7,121.11,121.06,1.6471]
[1741624279634,0.28432314,121.09,121.06,1.6471]
[1741624279835,61.24169922,121.08,121.05,1.01912726]
[1741624280040,18.64964886,121.06,121.05,1.01912726]
[1741624280217,28.34964886,121.06,121.05,1.01912726]
[1741624280409,18.64964886,121.06,121.05,1.01912726]
[1741624280613,9.7,121.06,121.05,9.28012726]
[1741624281012,9.7,121.06,121.05,51.87217762]
[1741624281213,9.7,121.07,121.05,58.45257762]
[1741624281536,228.4,121.1,121.09,20.0]
[1741624281741,228.4,121.1,121.09,62.59205036]
[1741624282120,218.7,121.1,121.09,62.59205036]
[1741624282440,0.16077036,121.12,121.09,62.59205036]
[1741624282621,0.16077036,121.12,121.11,62.59205036]
[1741624283443,0.16077036,121.12,121.11,70.84895036]
[1741624283741,0.16077036,121.12,121.1,42.59205036]
[1741624284243,0.16077036,121.12,121.08,64.14485036]
[1741624284630,0.16077036,121.12,121.09,42.59205036]
[1741624284943,0.16077036,121.12,121.1,42.59205036]
[1741624285154,0.16077036,121.12,121.11,42.59205036]
[1741624285525,0.16077036,121.12,121.11,50.84895036]
[1741624287056,0.16077036,121.12,121.11,52.94409207]
[1741624287240,0.15038506,121.13,121.11,59.55539207]
[1741624287437,0.15038506,121.13,121.12,42.59205036]
[1741624287949,3.3e-06,121.15,121.14,20.28432314]
[1741624288122,5.219e-05,121.16,121.15,0.28432314]
[1741624288451,0.38114842,121.17,121.15,42.8763735]
[1741624288628,0.38114842,121.17,121.16,20.0]
[1741624288828,0.21683911,121.17,121.16,62.59205036]
[1741624289234,0.21683911,121.17,121.15,42.59205036]
[1741624289437,69.71143833,121.17,121.12,44.22285036]
[1741624289631,43.82785462,121.16,121.11,44.40286893]
[1741624289952,9.68,121.15,121.14,42.59205036]
[1741624290451,9.68,121.15,121.13,42.59205036]
[1741624290627,9.68,121.15,121.14,42.59205036]
[1741624291455,9.68,121.15,121.12,42.59205036]
[1741624291625,9.68,121.15,121.13,42.59205036]
[1741624291825,9.68,121.15,121.12,42.59205036]
[1741624292429,9.68,121.15,121.13,42.59205036]
[1741624292636,0.21683911,121.17,121.14,42.59205036]
[1741624292861,9.68,121.16,121.15,42.59205036]
[1741624293448,9.68,121.16,121.14,42.59205036]
[1741624293651,9.68,121.16,121.15,42.59205036]
[1741624293853,0.21683911,121.17,121.16,1.5976]
[1741624294050,0.21683911,121.17,121.16,44.18965036]
[1741624294550,0.21683911,121.17,121.16,44.4739735]
[1741624295140,0.21683911,121.17,121.16,44.18965036]